[Event "FIDE WSTC Open 65 2025"]
[Site "Prague"]
[Date "2025.02.19"]
[Round "3.38"]
[White "Sprotte, Norbert"]
[Black "Svanda, Pavel"]
[Result "1/2-1/2"]
[Annotator "NA"]
[ECO "D32"]
[WhiteElo "2129"]
[BlackElo "2080"]
[PlyCount "37"]
[EventDate "2025.02.17"]
[EventType "team-tourn"]
[EventCountry "CZE"]
[SourceTitle "playchess.com"]
[Source "ChessBase"]
[SourceQuality "1"]
[TimeControl "40/5400+30:1800+30"]

1. Nf3 {[%emt 0:00:05]} d5 {[%emt 0:00:24]} 2. e3 {[%emt 0:00:25]} c5 {[%emt 0:00:40]} 3. b3 {[%emt 0:02:10]} Nf6 {[%emt 0:00:34]} 4. Bb2 {[%emt 0:00:54]} e6 {[%emt 0:00:19]} 5. c4 {[%emt 0:01:15]} Be7 {[%emt 0:01:17]} 6. Nc3 {[%emt 0:01:08]} O-O {[%emt 0:10:34]} 7. cxd5 {[%emt 0:06:44]} exd5 {[%emt 0:04:36]} 8. d4 {[%emt 0:06:24]} Nc6 {[%emt 0:00:43]} 9. Be2 {[%emt 0:03:07]} Be6 {[%emt 0:16:54]} 10. O-O {[%emt 0:01:28]} Rc8 {[%emt 0:25:23]} 11. dxc5 {[%emt 0:08:31]} Bxc5 {[%emt 0:00:40]} 12. Rc1 {[%emt 0:01:37]} Qe7 {[%emt 0:04:15]} 13. Nb5 {[%emt 0:02:47]} a6 {[%emt 0:03:23]} 14. Bxf6 {[%emt 0:10:43]} gxf6 {[%emt 0:00:27]} 15. Nbd4 {[%emt 0:00:17]} Ne5 {[%emt 0:04:15]} 16. Nh4 {[%emt 0:09:23]} Qd7 {[%emt 0:01:37]} 17. f4 {[%emt 0:09:33]} Ng6 {[%emt 0:01:35]} 18. Nhf3 {[%emt 0:02:41]} Bf5 {[%emt 0:04:28]} 19. Nxf5 {[%emt 0:05:37]} 1/2-1/2

[Event "FIDE WSTC Open 65 2025"]
[Site "Prague"]
[Date "2025.02.19"]
[Round "3.39"]
[White "Nemec, Pavel"]
[Black "Lanzendoerfer, Johannes"]
[Result "1-0"]
[Annotator "ChessBase"]
[ECO "C02"]
[WhiteElo "2117"]
[BlackElo "2131"]
[PlyCount "115"]
[EventDate "2025.02.17"]
[EventType "team-tourn"]
[EventCountry "CZE"]
[SourceTitle "playchess.com"]
[Source "ChessBase"]
[SourceQuality "1"]
[TimeControl "40/5400+30:1800+30"]

1. e4 {[%emt 0:00:07]} e6 {[%emt 0:00:07]} 2. d4 {[%emt 0:00:11]} d5 {[%emt 0:00:07]} 3. e5 {[%emt 0:00:17]} c5 {[%emt 0:00:06]} 4. c3 {[%emt 0:00:07]} Nc6 {[%emt 0:00:11]} 5. Nf3 {[%emt 0:00:08]} Bd7 {[%emt 0:01:04]} 6. a3 {[%emt 0:00:13]} c4 {[%emt 0:00:21]} 7. g3 {[%emt 0:00:20]} Na5 {[%emt 0:00:41]} 8. Nbd2 {[%emt 0:00:11]} Bc6 {[%emt 0:00:35]} 9. h4 {[%emt 0:00:58]} Qd7 {[%emt 0:00:34]} 10. Bh3 {[%emt 0:40:35]} Ba4 {[%emt 0:09:57]} 11. Qe2 {[%emt 0:00:02]} Ne7 {[%emt 0:00:43]} 12. O-O {[%emt 0:01:05]} h6 {[%emt 0:11:11]} 13. h5 {[%emt 0:00:28]} O-O-O {[%emt 0:03:13]} 14. Nh4 {[%emt 0:01:11]} g5 {[%emt 0:16:51]} 15. Ng2 {[%emt 0:03:01]} Rg8 {[%emt 0:03:31]} 16. Ne3 {[%emt 0:01:46]} Bg7 {[%emt 0:04:59]} 17. Ng4 {[%emt 0:00:47]} Nf5 {[%emt 0:00:37]} 18. Nf3 {[%emt 0:01:13]} Qe7 {[%emt 0:03:20]} 19. Be3 {[%emt 0:12:49]} Kb8 {[%emt 0:01:36]} 20. Rae1 {[%emt 0:00:20]} Rde8 {[%emt 0:02:40]} 21. Kh1 {[%emt 0:02:35]} Ka8 {[%emt 0:07:14]} 22. Bc1 {[%emt 0:01:47]} Nc6 {[%emt 0:01:45]} 23. Ngh2 {[%emt 0:06:51]} Qd7 {[%emt 0:01:17]} 24. g4 {[%emt 0:04:33]} Nfe7 {[%emt 0:00:37]} 25. Ng1 {[%emt 0:00:22]} Nd8 {[%emt 0:04:35]} 26. f4 {[%emt 0:00:27]} gxf4 {[%emt 0:07:13]} 27. Bxf4 {[%emt 0:00:03]} Rgf8 {[%emt 0:01:35]} 28. Qd2 {[%emt 0:03:19]} Ng8 {[%emt 0:00:32]} 29. Ngf3 {[%emt 0:01:05]} f6 {[%emt 0:06:48]} 30. exf6 {[%emt 0:01:15]} Bxf6 {[%emt 0:02:40]} 31. Bxh6 {[%emt 0:01:37]} Nxh6 {[%emt 0:00:38]} 32. Qxh6 {[%emt 0:00:01]} Qe7 {[%emt 0:03:27]} 33. Qd2 {[%emt 0:00:39]} Rg8 {[%emt 0:03:20]} 34. Ne5 {[%emt 0:05:45]} Bg5 {[%emt 0:00:19]} 35. Qe2 {[%emt 0:00:45]} Qh7 {[%emt 0:01:11]} 36. Nhf3 {[%emt 0:01:47]} Bf4 {[%emt 0:00:45]} 37. Qf2 {[%emt 0:03:35]} Bc2 {[%emt 0:00:57]} 38. Nd2 {[%emt 0:01:13]} Bg5 {[%emt 0:00:40]} 39. Nef3 {[%emt 0:02:43]} Bf4 {[%emt 0:01:11]} 40. Ne5 {[%emt 0:02:45]} Bg5 {[%emt 0:00:20]} 41. Bg2 {[%emt 0:31:26]} Bh6 {[%emt 0:07:37]} 42. Qe2 {[%emt 0:00:00]} Ref8 {[%emt 0:03:05]} 43. Rxf8 {[%emt 0:00:00]} Rxf8 {[%emt 0:00:32]} 44. Rf1 {[%emt 0:00:00]} Rg8 {[%emt 0:07:14]} 45. Rf2 {[%emt 0:00:00]} Ba4 {[%emt 0:01:15]} 46. Ndf3 {[%emt 0:00:00]} Be8 {[%emt 0:00:54]} 47. Kg1 {[%emt 0:00:00]} Bf4 {[%emt 0:00:39]} 48. Nh2 {[%emt 0:00:00]} Qh6 {[%emt 0:00:36]} 49. Nf1 {[%emt 0:00:00]} Qg5 {[%emt 0:01:39]} 50. Rf3 {[%emt 0:00:00]} Bxe5 {[%emt 0:02:04]} 51. Qxe5 {[%emt 0:00:00]} Qxe5 {[%emt 0:00:23]} 52. dxe5 {[%emt 0:00:00]} Nc6 {[%emt 0:00:25]} 53. Ne3 {[%emt 0:00:00]} Nxe5 {[%emt 0:04:51]} 54. Rf6 {[%emt 0:00:00]} Nd3 {[%emt 0:02:05]} 55. Kh2 {[%emt 0:01:27]} a6 {[%emt 0:00:43]} 56. Kh3 {[%emt 0:01:05]} Bd7 {[%emt 0:01:28]} 57. Kh4 {[%emt 0:00:31]} e5 {[%emt 0:00:34]} 58. Bxd5 {[%emt 0:00:18]} 1-0

[Event "FIDE WSTC Open 65 2025"]
[Site "Prague"]
[Date "2025.02.19"]
[Round "3.40"]
[White "Steiger, Michael"]
[Black "Vavruska, Antonin"]
[Result "0-1"]
[Annotator "NA"]
[ECO "A10"]
[WhiteElo "1919"]
[BlackElo "1926"]
[PlyCount "64"]
[EventDate "2025.02.17"]
[EventType "team-tourn"]
[EventCountry "CZE"]
[SourceTitle "playchess.com"]
[Source "ChessBase"]
[SourceQuality "1"]
[TimeControl "40/5400+30:1800+30"]

1. Nf3 {[%emt 0:00:14]} e6 {[%emt 0:00:47]} 2. g3 {[%emt 0:01:07]} f5 {[%emt 0:00:12]} 3. c4 {[%emt 0:00:36]} Nf6 {[%emt 0:00:10]} 4. Bg2 {[%emt 0:00:51]} Be7 {[%emt 0:00:19]} 5. O-O {[%emt 0:00:32]} O-O {[%emt 0:00:17]} 6. Nc3 {[%emt 0:00:28]} d6 {[%emt 0:00:07]} 7. d3 {[%emt 0:00:53]} c6 {[%emt 0:01:28]} 8. e3 {[%emt 0:01:53]} e5 {[%emt 0:02:09]} 9. c5 {[%emt 0:20:23]} Kh8 {[%emt 0:06:11]} 10. cxd6 {[%emt 0:07:10]} Bxd6 {[%emt 0:00:04]} 11. b3 {[%emt 0:05:14]} Be6 {[%emt 0:03:45]} 12. Bb2 {[%emt 0:02:39]} Nbd7 {[%emt 0:03:46]} 13. Qc2 {[%emt 0:13:43]} Qe8 {[%emt 0:01:26]} 14. Ng5 {[%emt 0:04:08]} Bg8 {[%emt 0:01:46]} 15. f4 {[%emt 0:01:25]} exf4 {[%emt 0:24:19]} 16. exf4 {[%emt 0:01:58]} Bc5+ {[%emt 0:01:18]} 17. Kh1 {[%emt 0:02:14]} Ng4 {[%emt 0:02:23]} 18. Na4 {[%emt 0:07:35]} Qh5 {[%emt 0:02:30]} 19. h4 {[%emt 0:05:12]} Be7 {[%emt 0:00:27]} 20. Rae1 {[%emt 0:02:32]} Bb4 {[%emt 0:04:15]} 21. Re6 {[%emt 0:09:55]} Bxe6 {[%emt 0:02:33]} 22. Nxe6 {[%emt 0:00:36]} Rf7 {[%emt 0:03:08]} 23. Qc4 {[%emt 0:07:04]} Bf8 {[%emt 0:02:47]} 24. Qd4 {[%emt 0:01:44]} Ndf6 {[%emt 0:05:32]} 25. Bf3 {[%emt 0:01:38]} Rd7 {[%emt 0:00:58]} 26. Qc4 {[%emt 0:00:38]} Re8 {[%emt 0:00:36]} 27. Ng5 {[%emt 0:00:26]} Qg6 {[%emt 0:01:14]} 28. Nc5 {[%emt 0:00:21]} Ne3 {[%emt 0:02:02]} 29. Qc1 {[%emt 0:01:04]} Bxc5 {[%emt 0:00:16]} 30. h5 {[%emt 0:00:18]} Nxh5 {[%emt 0:01:18]} 31. Re1 {[%emt 0:00:35]} Bb6 {[%emt 0:03:06]} 32. Qc3 {[%emt 0:00:33]} Nf6 {[%emt 0:02:38]} 0-1

[Event "FIDE WSTC Open 65 2025"]
[Site "Prague"]
[Date "2025.02.19"]
[Round "3.41"]
[White "Roos, Jean-Luc"]
[Black "Bergstrom, Rolf"]
[Result "1-0"]
[Annotator "ChessBase"]
[ECO "B23"]
[WhiteElo "2165"]
[BlackElo "2160"]
[PlyCount "75"]
[EventDate "2025.02.17"]
[EventType "team-tourn"]
[EventCountry "CZE"]
[SourceTitle "playchess.com"]
[Source "ChessBase"]
[SourceQuality "1"]
[TimeControl "40/5400+30:1800+30"]

1. e4 {[%emt 0:00:03]} c5 {[%emt 0:01:04]} 2. Nc3 {[%emt 0:00:12]} e6 {[%emt 0:00:51]} 3. g3 {[%emt 0:01:06]} d5 {[%emt 0:02:20]} 4. Bg2 {[%emt 0:01:12]} d4 {[%emt 0:01:58]} 5. Nce2 {[%emt 0:00:19]} d3 {[%emt 0:01:52]} 6. cxd3 {[%emt 0:05:53]} Nc6 {[%emt 0:00:59]} 7. Nf3 {[%emt 0:01:38]} e5 {[%emt 0:01:08]} 8. O-O {[%emt 0:03:43]} Be6 {[%emt 0:08:13]} 9. b3 {[%emt 0:05:05]} f6 {[%emt 0:00:56]} 10. Bb2 {[%emt 0:04:32]} Qxd3 {[%emt 0:09:01]} 11. Nc3 {[%emt 0:07:14]} Nge7 {[%emt 0:07:18]} 12. Nd5 {[%emt 0:05:17]} O-O-O {[%emt 0:04:51]} 13. Re1 {[%emt 0:05:58]} Qa6 {[%emt 0:19:07]} 14. Bf1 {[%emt 0:02:39]} Qa5 {[%emt 0:05:03]} 15. Bc3 {[%emt 0:00:41]} Qa3 {[%emt 0:00:04]} 16. Ne3 {[%emt 0:02:28]} Nd4 {[%emt 0:01:18]} 17. Nc4 {[%emt 0:08:49]} Bxc4 {[%emt 0:00:50]} 18. Bxc4 {[%emt 0:00:21]} Nec6 {[%emt 0:11:20]} 19. Rf1 {[%emt 0:12:52]} Kb8 {[%emt 0:03:47]} 20. Ne1 {[%emt 0:08:46]} b5 {[%emt 0:04:16]} 21. Bd5 {[%emt 0:00:40]} Nb4 {[%emt 0:04:29]} 22. Bxb4 {[%emt 0:04:49]} Qxb4 {[%emt 0:00:30]} 23. a4 {[%emt 0:03:05]} Qa5 {[%emt 0:04:22]} 24. axb5 {[%emt 0:02:46]} Qxb5 {[%emt 0:00:05]} 25. Nc2 {[%emt 0:01:02]} Nxc2 {[%emt 0:03:18]} 26. Qxc2 {[%emt 0:00:06]} Bd6 {[%emt 0:00:41]} 27. Ra4 {[%emt 0:03:47]} Bc7 {[%emt 0:00:20]} 28. b4 {[%emt 0:03:17]} Bb6 {[%emt 0:01:45]} 29. bxc5 {[%emt 0:00:47]} Qxc5 {[%emt 0:00:05]} 30. Rc4 {[%emt 0:01:04]} Qe7 {[%emt 0:01:07]} 31. Rc1 {[%emt 0:01:35]} Qd7 {[%emt 0:00:16]} 32. Qa2 {[%emt 0:01:28]} Rc8 {[%emt 0:00:44]} 33. Bc6 {[%emt 0:00:30]} Qe7 {[%emt 0:00:55]} 34. Qa6 {[%emt 0:00:47]} Rcd8 {[%emt 0:01:24]} 35. Rb1 {[%emt 0:00:32]} Rd4 {[%emt 0:01:10]} 36. Rxb6+ {[%emt 0:00:51]} axb6 {[%emt 0:00:02]} 37. Qxb6+ {[%emt 0:00:35]} Kc8 {[%emt 0:00:08]} 38. Bb7+ {[%emt 0:00:13]} 1-0

[Event "FIDE WSTC Open 65 2025"]
[Site "Prague"]
[Date "2025.02.19"]
[Round "3.42"]
[White "Soderberg, Per"]
[Black "Boulard, Eric"]
[Result "1/2-1/2"]
[Annotator "ChessBase"]
[ECO "B13"]
[WhiteElo "2065"]
[BlackElo "2162"]
[PlyCount "69"]
[EventDate "2025.02.17"]
[EventType "team-tourn"]
[EventCountry "CZE"]
[SourceTitle "playchess.com"]
[Source "ChessBase"]
[SourceQuality "1"]
[TimeControl "40/5400+30:1800+30"]

1. e4 {[%emt 0:00:05]} c6 {[%emt 0:00:16]} 2. d4 {[%emt 0:00:28]} d5 {[%emt 0:00:30]} 3. exd5 {[%emt 0:00:16]} cxd5 {[%emt 0:00:10]} 4. c4 {[%emt 0:00:05]} Nf6 {[%emt 0:01:26]} 5. Nc3 {[%emt 0:00:11]} Nc6 {[%emt 0:02:03]} 6. Nf3 {[%emt 0:00:42]} a6 {[%emt 0:03:40]} 7. Ne5 {[%emt 0:13:23]} Be6 {[%emt 0:23:44]} 8. Nxc6 {[%emt 0:05:02]} bxc6 {[%emt 0:00:10]} 9. c5 {[%emt 0:00:35]} Bf5 {[%emt 0:11:54]} 10. Bd3 {[%emt 0:02:29]} g6 {[%emt 0:03:43]} 11. O-O {[%emt 0:04:44]} Bg7 {[%emt 0:00:15]} 12. Re1 {[%emt 0:01:58]} O-O {[%emt 0:00:13]} 13. Bxf5 {[%emt 0:07:01]} gxf5 {[%emt 0:00:06]} 14. Bf4 {[%emt 0:00:12]} Ra7 {[%emt 0:12:47]} 15. Qd3 {[%emt 0:08:17]} e6 {[%emt 0:04:53]} 16. b4 {[%emt 0:04:00]} Re8 {[%emt 0:16:05]} 17. a4 {[%emt 0:00:55]} Ne4 {[%emt 0:05:21]} 18. Ne2 {[%emt 0:01:11]} f6 {[%emt 0:02:13]} 19. f3 {[%emt 0:11:45]} Ng5 {[%emt 0:01:34]} 20. Bg3 {[%emt 0:02:33]} Qd7 {[%emt 0:01:47]} 21. Rab1 {[%emt 0:07:43]} e5 {[%emt 0:01:54]} 22. f4 {[%emt 0:04:13]} e4 {[%emt 0:03:44]} 23. Qc3 {[%emt 0:01:44]} Ne6 {[%emt 0:00:17]} 24. Rb3 {[%emt 0:01:43]} Nc7 {[%emt 0:00:33]} 25. Bf2 {[%emt 0:00:52]} Rb7 {[%emt 0:00:31]} 26. Reb1 {[%emt 0:00:48]} Reb8 {[%emt 0:00:12]} 27. Qh3 {[%emt 0:04:18]} Kh8 {[%emt 0:00:56]} 28. Be1 {[%emt 0:02:17]} Bf8 {[%emt 0:00:44]} 29. Ng3 {[%emt 0:02:46]} Ne6 {[%emt 0:00:28]} 30. Ne2 {[%emt 0:01:12]} Nc7 {[%emt 0:00:32]} 31. Qc3 {[%emt 0:03:18]} Be7 {[%emt 0:00:15]} 32. Qc2 {[%emt 0:00:23]} Ne6 {[%emt 0:00:36]} 33. Qd1 {[%emt 0:01:59]} Bd8 {[%emt 0:00:39]} 34. g3 {[%emt 0:02:07]} Be7 {[%emt 0:00:17]} 35. Qc2 {[%emt 0:02:28]} 1/2-1/2

[Event "FIDE WSTC Open 65 2025"]
[Site "Prague"]
[Date "2025.02.19"]
[Round "3.43"]
[White "Fayard, Alain"]
[Black "Braathen, Tom"]
[Result "1/2-1/2"]
[Annotator "NA"]
[ECO "A57"]
[WhiteElo "2117"]
[BlackElo "1963"]
[PlyCount "48"]
[EventDate "2025.02.17"]
[EventType "team-tourn"]
[EventCountry "CZE"]
[SourceTitle "playchess.com"]
[Source "ChessBase"]
[SourceQuality "1"]
[TimeControl "40/5400+30:1800+30"]

1. d4 {[%emt 0:00:05]} Nf6 {[%emt 0:00:13]} 2. c4 {[%emt 0:00:07]} c5 {[%emt 0:00:20]} 3. d5 {[%emt 0:00:14]} b5 {[%emt 0:00:19]} 4. cxb5 {[%emt 0:00:18]} a6 {[%emt 0:00:09]} 5. b6 {[%emt 0:00:06]} d6 {[%emt 0:00:20]} 6. Nc3 {[%emt 0:00:28]} Nbd7 {[%emt 0:00:21]} 7. a4 {[%emt 0:00:52]} a5 {[%emt 0:01:51]} 8. e4 {[%emt 0:00:14]} Nxb6 {[%emt 0:00:51]} 9. Bb5+ {[%emt 0:02:05]} Bd7 {[%emt 0:02:34]} 10. Nf3 {[%emt 0:03:06]} Bxb5 {[%emt 0:02:43]} 11. axb5 {[%emt 0:00:03]} g6 {[%emt 0:02:30]} 12. O-O {[%emt 0:00:35]} Bg7 {[%emt 0:00:15]} 13. h3 {[%emt 0:08:30]} O-O {[%emt 0:01:47]} 14. Qe2 {[%emt 0:06:38]} Qc7 {[%emt 0:25:00]} 15. Bf4 {[%emt 0:03:27]} Qb7 {[%emt 0:08:27]} 16. Rfd1 {[%emt 0:06:29]} Rfd8 {[%emt 0:09:03]} 17. Bh2 {[%emt 0:01:15]} Ne8 {[%emt 0:09:18]} 18. Nd2 {[%emt 0:03:00]} Nc7 {[%emt 0:01:15]} 19. f4 {[%emt 0:01:55]} e6 {[%emt 0:05:10]} 20. dxe6 {[%emt 0:08:21]} Nxe6 {[%emt 0:01:40]} 21. Nf3 {[%emt 0:09:40]} Nd4 {[%emt 0:04:24]} 22. Nxd4 {[%emt 0:05:56]} cxd4 {[%emt 0:01:17]} 23. Nb1 {[%emt 0:04:33]} Re8 {[%emt 0:03:14]} 24. Nd2 {[%emt 0:02:33]} Nd5 {[%emt 0:01:24]} 1/2-1/2

[Event "FIDE WSTC Open 65 2025"]
[Site "Prague"]
[Date "2025.02.19"]
[Round "3.44"]
[White "Frisen, Hakan"]
[Black "Theon, Pierre"]
[Result "0-1"]
[Annotator "NA"]
[ECO "E12"]
[WhiteElo "1956"]
[BlackElo "2079"]
[PlyCount "78"]
[EventDate "2025.02.17"]
[EventType "team-tourn"]
[EventCountry "CZE"]
[SourceTitle "playchess.com"]
[Source "ChessBase"]
[SourceQuality "1"]
[TimeControl "40/5400+30:1800+30"]

1. d4 {[%emt 0:00:16]} Nf6 {[%emt 0:00:05]} 2. c4 {[%emt 0:00:23]} e6 {[%emt 0:00:04]} 3. Nc3 {[%emt 0:00:37]} Bb4 {[%emt 0:00:07]} 4. Qc2 {[%emt 0:00:42]} b6 {[%emt 0:00:18]} 5. e4 {[%emt 0:04:50]} c5 {[%emt 0:00:16]} 6. Nf3 {[%emt 0:07:06]} cxd4 {[%emt 0:04:52]} 7. Nxd4 {[%emt 0:00:07]} Bb7 {[%emt 0:01:12]} 8. f3 {[%emt 0:05:02]} Nc6 {[%emt 0:10:11]} 9. Be3 {[%emt 0:03:59]} Qc7 {[%emt 0:03:42]} 10. a3 {[%emt 0:07:32]} Be7 {[%emt 0:01:12]} 11. Be2 {[%emt 0:06:15]} O-O {[%emt 0:04:24]} 12. Nxc6 {[%emt 0:12:22]} dxc6 {[%emt 0:03:13]} 13. O-O {[%emt 0:02:49]} e5 {[%emt 0:01:31]} 14. f4 {[%emt 0:02:02]} exf4 {[%emt 0:03:57]} 15. Bxf4 {[%emt 0:00:15]} Bd6 {[%emt 0:01:41]} 16. Bxd6 {[%emt 0:00:57]} Qxd6 {[%emt 0:00:02]} 17. Rad1 {[%emt 0:01:08]} Qc5+ {[%emt 0:09:46]} 18. Kh1 {[%emt 0:00:16]} Rad8 {[%emt 0:19:12]} 19. Rf5 {[%emt 0:02:55]} Rxd1+ {[%emt 0:07:23]} 20. Qxd1 {[%emt 0:00:19]} Qe3 {[%emt 0:01:19]} 21. Rf3 {[%emt 0:00:52]} Qc5 {[%emt 0:01:41]} 22. Rd3 {[%emt 0:06:23]} Qe7 {[%emt 0:07:49]} 23. Bf3 {[%emt 0:04:43]} Re8 {[%emt 0:01:51]} 24. Qa4 {[%emt 0:07:17]} a5 {[%emt 0:02:49]} 25. Qb3 {[%emt 0:04:07]} Qc7 {[%emt 0:06:46]} 26. Qd1 {[%emt 0:01:18]} Bc8 {[%emt 0:02:54]} 27. b3 {[%emt 0:05:08]} Nd7 {[%emt 0:01:05]} 28. Kg1 {[%emt 0:04:57]} Ne5 {[%emt 0:00:48]} 29. Rd2 {[%emt 0:02:25]} h6 {[%emt 0:01:39]} 30. a4 {[%emt 0:00:55]} Qe7 {[%emt 0:01:20]} 31. Ne2 {[%emt 0:03:33]} Qc5+ {[%emt 0:00:44]} 32. Kh1 {[%emt 0:01:17]} Kh7 {[%emt 0:00:54]} 33. Ng3 {[%emt 0:01:13]} Qe3 {[%emt 0:00:36]} 34. Re2 {[%emt 0:00:25]} Qc3 {[%emt 0:00:24]} 35. Rd2 {[%emt 0:00:28]} Bg4 {[%emt 0:01:21]} 36. Bxg4 {[%emt 0:01:16]} Nxg4 {[%emt 0:00:02]} 37. Qc2 {[%emt 0:00:56]} Qa1+ {[%emt 0:01:04]} 38. Rd1 {[%emt 0:01:02]} Qxd1+ {[%emt 0:00:10]} 39. Qxd1 {[%emt 0:00:10]} Nf2+ {[%emt 0:00:01]} 0-1

[Event "FIDE WSTC Open 65 2025"]
[Site "Prague"]
[Date "2025.02.19"]
[Round "3.45"]
[White "Houston, David"]
[Black "Holst, Per"]
[Result "1/2-1/2"]
[Annotator "RC"]
[ECO "C03"]
[WhiteElo "2235"]
[BlackElo "2037"]
[PlyCount "44"]
[EventDate "2025.02.17"]
[EventType "team-tourn"]
[EventCountry "CZE"]
[SourceTitle "playchess.com"]
[Source "ChessBase"]
[SourceQuality "1"]
[TimeControl "40/5400+30:1800+30"]

1. e4 {[%emt 0:02:11]} e6 {[%emt 0:00:07]} 2. d4 {[%emt 0:00:29]} d5 {[%emt 0:00:09]} 3. Nd2 {[%emt 0:00:43]} a6 {[%emt 0:00:19]} 4. Ngf3 {[%emt 0:00:50]} Nf6 {[%emt 0:00:17]} 5. Bd3 {[%emt 0:02:13]} c5 {[%emt 0:00:17]} 6. c3 {[%emt 0:03:06]} Nc6 {[%emt 0:00:41]} 7. O-O {[%emt 0:01:33]} cxd4 {[%emt 0:02:40]} 8. cxd4 {[%emt 0:00:43]} g6 {[%emt 0:02:13]} 9. e5 {[%emt 0:03:38]} Nd7 {[%emt 0:00:10]} 10. Nb3 {[%emt 0:01:16]} Bg7 {[%emt 0:01:09]} 11. Qe2 {[%emt 0:07:13]} O-O {[%emt 0:01:04]} 12. Re1 {[%emt 0:09:30]} Qb6 {[%emt 0:06:14]} 13. Be3 {[%emt 0:02:43]} a5 {[%emt 0:14:58]} 14. Rac1 {[%emt 0:11:23]} a4 {[%emt 0:01:23]} 15. Nc5 {[%emt 0:01:15]} Nxc5 {[%emt 0:00:58]} 16. dxc5 {[%emt 0:03:34]} Qc7 {[%emt 0:02:31]} 17. Bf4 {[%emt 0:02:15]} f6 {[%emt 0:07:28]} 18. exf6 {[%emt 0:07:14]} Qxf4 {[%emt 0:00:16]} 19. fxg7 {[%emt 0:00:06]} Kxg7 {[%emt 0:00:33]} 20. Bb5 {[%emt 0:02:35]} Nd4 {[%emt 0:01:40]} 21. Nxd4 {[%emt 0:00:35]} Qxd4 {[%emt 0:00:13]} 22. c6 {[%emt 0:00:53]} bxc6 {[%emt 0:02:04]} 1/2-1/2

[Event "FIDE WSTC Open 65 2025"]
[Site "Prague"]
[Date "2025.02.19"]
[Round "3.46"]
[White "Olesen, Poul Erik Norgaard"]
[Black "Wallace, John Paul"]
[Result "1/2-1/2"]
[Annotator "RC"]
[ECO "A03"]
[WhiteElo "1961"]
[BlackElo "2351"]
[PlyCount "66"]
[EventDate "2025.02.17"]
[EventType "team-tourn"]
[EventCountry "CZE"]
[SourceTitle "playchess.com"]
[Source "ChessBase"]
[SourceQuality "1"]
[TimeControl "40/5400+30:1800+30"]

1. f4 {[%emt 0:00:11]} d5 {[%emt 0:04:15]} 2. b3 {[%emt 0:00:14]} c5 {[%emt 0:00:38]} 3. Bb2 {[%emt 0:00:11]} Nc6 {[%emt 0:00:12]} 4. Nf3 {[%emt 0:00:16]} Nf6 {[%emt 0:00:28]} 5. e3 {[%emt 0:02:51]} e6 {[%emt 0:00:32]} 6. Nc3 {[%emt 0:03:11]} Be7 {[%emt 0:03:02]} 7. Bb5 {[%emt 0:04:39]} O-O {[%emt 0:01:51]} 8. O-O {[%emt 0:05:23]} d4 {[%emt 0:07:16]} 9. exd4 {[%emt 0:05:39]} Nxd4 {[%emt 0:03:37]} 10. Bd3 {[%emt 0:04:57]} b6 {[%emt 0:05:25]} 11. Ne4 {[%emt 0:11:16]} Bb7 {[%emt 0:01:26]} 12. Bxd4 {[%emt 0:13:55]} cxd4 {[%emt 0:11:39]} 13. Nxf6+ {[%emt 0:01:19]} Bxf6 {[%emt 0:01:21]} 14. Qe2 {[%emt 0:01:45]} Rc8 {[%emt 0:03:19]} 15. Rae1 {[%emt 0:01:00]} g6 {[%emt 0:07:52]} 16. Qf2 {[%emt 0:06:54]} Rc5 {[%emt 0:05:11]} 17. a4 {[%emt 0:00:37]} Qd6 {[%emt 0:12:12]} 18. Qg3 {[%emt 0:01:04]} Qd8 {[%emt 0:02:45]} 19. Re2 {[%emt 0:01:15]} Qc7 {[%emt 0:02:39]} 20. Ne5 {[%emt 0:02:44]} Bg7 {[%emt 0:05:47]} 21. h4 {[%emt 0:11:26]} Rxc2 {[%emt 0:02:12]} 22. Bxc2 {[%emt 0:04:03]} Qxc2 {[%emt 0:00:05]} 23. Qd3 {[%emt 0:00:24]} Qxd3 {[%emt 0:01:35]} 24. Nxd3 {[%emt 0:00:11]} Ba6 {[%emt 0:00:55]} 25. Rf3 {[%emt 0:00:10]} Bb7 {[%emt 0:01:45]} 26. Rf1 {[%emt 0:00:40]} Ba6 {[%emt 0:02:25]} 27. Rf3 {[%emt 0:00:18]} Bf6 {[%emt 0:02:52]} 28. g3 {[%emt 0:00:29]} Bb7 {[%emt 0:00:10]} 29. Rf1 {[%emt 0:00:33]} Ba6 {[%emt 0:00:10]} 30. Rf3 {[%emt 0:00:13]} Bb7 {[%emt 0:03:25]} 31. Rf1 {[%emt 0:00:18]} Ba6 {[%emt 0:03:27]} 32. Rf3 {[%emt 0:00:10]} Bb7 {[%emt 0:02:02]} 33. Rf1 {[%emt 0:00:27]} Ba6 {[%emt 0:00:21]} 1/2-1/2

[Event "FIDE WSTC Open 65 2025"]
[Site "Prague"]
[Date "2025.02.19"]
[Round "3.47"]
[White "Smith, Andrew Philip"]
[Black "Jorgensen, Arne Bjorn"]
[Result "1-0"]
[Annotator "ChessBase"]
[ECO "C02"]
[WhiteElo "2117"]
[BlackElo "1950"]
[PlyCount "89"]
[EventDate "2025.02.17"]
[EventType "team-tourn"]
[EventCountry "CZE"]
[SourceTitle "playchess.com"]
[Source "ChessBase"]
[SourceQuality "1"]
[TimeControl "40/5400+30:1800+30"]

1. e4 {[%emt 0:04:41]} e6 {[%emt 0:00:04]} 2. d4 {[%emt 0:00:17]} d5 {[%emt 0:00:06]} 3. e5 {[%emt 0:00:45]} c5 {[%emt 0:00:07]} 4. c3 {[%emt 0:00:06]} Nc6 {[%emt 0:00:24]} 5. Nf3 {[%emt 0:00:08]} Qb6 {[%emt 0:02:31]} 6. Bd3 {[%emt 0:00:28]} cxd4 {[%emt 0:01:57]} 7. O-O {[%emt 0:00:45]} dxc3 {[%emt 0:01:37]} 8. Nxc3 {[%emt 0:00:09]} Nge7 {[%emt 0:03:09]} 9. Re1 {[%emt 0:13:47]} Ng6 {[%emt 0:01:08]} 10. h4 {[%emt 0:01:11]} Bb4 {[%emt 0:13:43]} 11. h5 {[%emt 0:05:18]} Nge7 {[%emt 0:06:03]} 12. h6 {[%emt 0:04:13]} g6 {[%emt 0:08:01]} 13. a3 {[%emt 0:01:18]} Bxc3 {[%emt 0:02:19]} 14. bxc3 {[%emt 0:00:07]} Bd7 {[%emt 0:02:02]} 15. Bg5 {[%emt 0:05:10]} O-O-O {[%emt 0:06:45]} 16. Bf6 {[%emt 0:01:06]} Nf5 {[%emt 0:03:45]} 17. Bxf5 {[%emt 0:03:38]} gxf5 {[%emt 0:01:22]} 18. Ng5 {[%emt 0:00:29]} Rhg8 {[%emt 0:02:49]} 19. Nxf7 {[%emt 0:02:46]} Qc7 {[%emt 0:07:43]} 20. Nxd8 {[%emt 0:18:33]} Nxd8 {[%emt 0:00:40]} 21. Bg7 {[%emt 0:00:13]} Bc6 {[%emt 0:02:55]} 22. Qd4 {[%emt 0:00:32]} Kb8 {[%emt 0:01:33]} 23. Qh4 {[%emt 0:01:46]} b6 {[%emt 0:03:24]} 24. Qf6 {[%emt 0:01:06]} Qd7 {[%emt 0:01:54]} 25. Re3 {[%emt 0:04:14]} Nb7 {[%emt 0:01:30]} 26. Rd1 {[%emt 0:13:55]} Nc5 {[%emt 0:01:17]} 27. f3 {[%emt 0:00:24]} Rc8 {[%emt 0:03:45]} 28. Bf8 {[%emt 0:01:21]} Ba4 {[%emt 0:02:13]} 29. Rd4 {[%emt 0:01:13]} Bb5 {[%emt 0:02:52]} 30. Bd6+ {[%emt 0:01:38]} Kb7 {[%emt 0:00:32]} 31. Qg7 {[%emt 0:01:18]} Qxg7 {[%emt 0:04:30]} 32. hxg7 {[%emt 0:00:10]} Rg8 {[%emt 0:00:10]} 33. Bf8 {[%emt 0:04:31]} Nd7 {[%emt 0:00:49]} 34. Rh4 {[%emt 0:00:12]} Nxf8 {[%emt 0:00:49]} 35. gxf8=Q {[%emt 0:00:10]} Rxf8 {[%emt 0:00:04]} 36. Rxh7+ {[%emt 0:00:10]} Ka6 {[%emt 0:03:33]} 37. Re7 {[%emt 0:00:19]} Re8 {[%emt 0:01:07]} 38. Rxe8 {[%emt 0:00:33]} Bxe8 {[%emt 0:00:08]} 39. Rd3 {[%emt 0:00:55]} Kb5 {[%emt 0:00:50]} 40. Rd4 {[%emt 0:00:10]} Kc5 {[%emt 0:00:56]} 41. Kf2 {[%emt 0:30:23]} a5 {[%emt 0:31:28]} 42. Ke3 {[%emt 0:00:27]} Bb5 {[%emt 0:01:23]} 43. g4 {[%emt 0:01:02]} fxg4 {[%emt 0:00:51]} 44. fxg4 {[%emt 0:00:20]} Be8 {[%emt 0:00:21]} 45. Kf4 {[%emt 0:00:41]} 1-0